Workbook

Sheet EI Transformer WorkSheet
A1: EI Transformer work sheet | D1: UM Inch | F1: Instructions: Enter transformer specifications into cells B3-B8
F2: Enter Secondary full load voltage in B30
A3: Freq Low | B3: 60 | C3: Hz | D3: Lowest Working Frequency
A4: Freq Hi | B4: 60 | C4: Hz | D4: Info only
A5: Primary Volts | B5: 120 | C5: Vrns | D5: Input voltage
A6: Output VA | B6: 75 | C6: VA | D6: Sum VA’s of all secondaries
A7: Core Bmax Tesla's | B7: 1.00 | C7: T | D7: From Material spec
A8: Efficiency % | B8: 85 | C8: % | D8: 85% typical unless you have better est.
A9: Core | B9: =INDEX('EI Core Selector'!A1:I12,(MATCH(B6,'EI Core Selector'!F2:F12,1)+1),2) -> EI 100 (1 inch tongue) | D9: EI core designation | F9: Core selecton based on VA @ 60 Hz
A10: Tongue Width in. (TW) | B10: =INDEX('EI Core Selector'!A1:I12,(MATCH(B6,'EI Core Selector'!F2:F12,1)+1),3) -> 1 | C10: in | D10: EI Tongue Width in inches
A11: Stack height Mult Factor | B11: =INDEX('EI Core Selector'!A1:I12,(MATCH(B6,'EI Core Selector'!F2:F12,1)+1),4) -> 2.000 | D11: 0.5, 1, 1.5 2 Multipliers X Tongue width
A12: Stack Height inches | B12: =B10*B11 -> 2.000 | C12: in
A13: Input VA | B13: =(B6 / (B8/100)) -> 88 | C13: VA | F13: For mutiple secondaries: Enter each secondary voltage one at a time.
A14: Average VA | B14: =(B6+B13) / 2 -> 82 | C14: VA | F14: record the number of turns. The cmil's shown in B18 must be > 3 * the total for
A15: Input Amps | B15: =B13 / B5 -> 0.74 | C15: A | F15: all the windings cmil requirements totaled together. (each is turns * wire cmil
A16: Tongue Area in², M² | B16: =B10 * (B10 *B11) -> 2 | C16: in² | D16: =B16 * 0.0006452 -> 0.0012904 | E16: M² | F16: from table) So, you must decide the correct wire size for each secondary based on
A17: Avg Len / Turn in. | B17: =2*((1.25 * B10) + ((B11 * B10)+ 0.25 * B10)) -> 7 | C17: in | F17: it's current requirement. I use 500 cmil/amp as a resonable vaue to select wire size
A18: Winding Area cmil | B18: =(1500 * B10) * (500 * B10) -> 750000 | C18: cmil | F18: Make sure the sum of cmil's for all secondaries + Primary does not exceed
A19: Primary turns | B19: =B5 / (4.44 * B3 * D16 * B7) -> 349 | C19: Turns | F19: 33% of the value in B18
A20: Pri wire size cmil, Ga, %Fill | B20: =B15*500 -> 368 | C20: cmil | D20: =ROUND(-39*((LOG(B21/5) /LOG(92)))+ 36, 0) -> 24 | E20: Ga | F20: =(B20*B19)/B18 -> 17.11% | G20: Fill
A21: Pri Wire Dia Mils | B21: =ROUNDDOWN((B20^0.5), 0) -> 19 | C21: mil
A22: Pri wire len Feet | B22: =(B19 * B17 /12) -> 204 | C22: Ft | E22: =(B18 / 6) / B19 -> 358.086
A23: Ohms / 1000ft | B23: =1000 * 10.4/B21^2 -> 28.809 | C23: Ω/1000Ft | E23: =600*(B13/ B5) -> 441.1764706
A24: Primary Resistance | B24: =(B19*B23) *( B17 /12) / 1000 -> 5.87 | C24: Ω | D24: `
A25: Input Voltage Drop | B25: =B15*B24 -> 4.31 | C25: V
A26: Effective input voltage | B26: =B5-B25 -> 115.69 | C26: V
A27: Primary wire current rating | B27: =B20 / 500 -> 0.74 | C27: A
A28: Pri wire Lbs/1000 ft | B28: =0.003028 * B21^2 -> 1.09 | C28: Lbs/1000Ft
A29: Pri wire Lbs rqd. | B29: =(B28 *B22) /1000 -> 0.22 | C29: Lbs.
A31: Secondary FL voltage | B31: 15 | C31: Vrms | D31: Desired full load output voltage
A32: Open circuit Sec voltage | B32: =B5 * (B41 / B19) -> 16.12 | C32: Vrms | D32: Open circuit voltage: No load output = Input voltage * final turns ratio
A33: Pre Estimate Secondary Turns | B33: =B31 / (B26 / B19) -> 45.26 | C33: DO NOT USE, INTERNAL VALUE BEFORE Vdrop CALCULATION
A34: Sec Wire Size cmil, Ga, %Fill | B34: =B39*500 -> 2500 | C34: cmil | D34: =ROUND(-39*((LOG(B35/5) /LOG(92)))+ 36, 0) -> 16 | E34: Ga | F34: =(B34*B33)/B18 -> 15.09% | G34: Fill
A35: Secondary wire Dia. | B35: =ROUNDDOWN((B34^0.5), 0) -> 50 | C35: mils
A36: Sec wire Len Feet | B36: =(B33*B17) / 12 -> 26 | C36: Ft
A37: Sec wire Ohms / 1000ft | B37: =1000 * 10.4/B35^2 -> 4.160 | C37: Ω/1000Ft
A38: Secondary Resistance | B38: =(B33*B37) *( B17 /12) / 1000 -> 0.110 | C38: Ω
A39: Secondary Amps | B39: =B6 / B31 -> 5.00 | C39: A
A40: Secondary Voltage Drop | B40: =B39*B38 -> 0.55 | C40: V
A41: Final Sec Turns | B41: =ROUND((B31 + B40)/ (B26 / B19), 1 ) -> 46.9 | C41: Turns | D41: Corrected for Primary and Secondary voltage drop under full load
A42: Sec wire current rating | B42: =B34/500 -> 5.00 | C42: A
A43: Sec wire Lbs/1000 ft | B43: =0.003028 * B35^2 -> 7.570 | C43: Lbs/1000Ft
A44: Sec wire Lbs rqd. | B44: =(B36 * B43) /1000 -> 0.20 | C44: Lbs
A45: Total Fill Pri and Sec | B45: =F34+F20 -> 32.20% | C45: Fill, Best to keep less than 33%
A46: Total I²R power loss at full load | B46: =(B39^2*B38)+(B15^2*B2) -> 2.7 | C46: Watts
A47: Estimated Core loss | B47: =INDEX('EI Core Selector'!A1:M12,(MATCH(B6,'EI Core Selector'!F2:F12,1)+1),13) -> 6 | C47: Watts @ 60 Hz
A48: Estimated Total Loss | B48: =B46+B47 -> 8.7 | C48: Watts @ 60 Hz

Sheet EI Core Selector
A1: Index | B1: US Lamination | C1: Tongue Width | D1: Height Mult | E1: Stack Height in | F1: 40C° 60Hz VA Range | G1: A Inch² | H1: N for B = 1Tesla | I1: N for B = 1.176 Tesla | J1: VA/In³ | K1: Max %Fill | L1: Core Wt LBS | M1: Core Loss Watts
A2: 1 | B2: EI 100 (1 inch tongue) | C2: 1 | D2: 0.5 | E2: 0.500 | F2: 0 | G2: =C2*E2 -> 0.50 | H2: 1513 | I2: 1286 | J2: =F3/((2.5*C2)*(3*C2)*(E2)) -> 5 | K2: 33 | L2: 0.80 | M2: 1.5
A3: 2 | B3: EI 100 (1 inch tongue) | C3: 1 | D3: 1 | E3: 1.000 | F3: 19 | G3: =C3*E3 -> 1.00 | H3: 756 | I3: 643 | J3: =F4/((2.5*C3)*(3*C3)*(E3)) -> 5 | K3: 33.8 | L3: 1.60 | M3: 3.0
A4: 3 | B4: EI 100 (1 inch tongue) | C4: 1 | D4: 1.5 | E4: 1.500 | F4: 39 | G4: 1.50 | H4: 504 | I4: 429 | J4: 5 | K4: 33.6 | L4: 2.40 | M4: 4.5
A5: 4 | B5: EI 100 (1 inch tongue) | C5: 1 | D5: 2 | E5: 2.000 | F5: 59 | G5: 2.00 | H5: 378 | I5: 322 | J5: 5 | K5: 33.3 | L5: 3.20 | M5: 6.0
A6: 5 | B6: EI 175 (1.75 in tongue) | C6: 1.75 | D6: 1 | E6: 1.750 | F6: 78 | G6: 3.06 | H6: 247 | I6: 210 | J6: 9 | K6: 31.85 | L6: 8.67 | M6: 6.5
A7: 6 | B7: EI 175 (1.75 in tongue) | C7: 1.75 | D7: 1.5 | E7: 2.625 | F7: 350 | G7: 4.59 | H7: 164 | I7: 140 | J7: 8 | K7: 30.27 | L7: 13.00 | M7: 9.8
A8: 7 | B8: EI 175 (1.75 in tongue) | C8: 1.75 | D8: 2 | E8: 3.500 | F8: 485 | G8: 6.13 | H8: 124 | I8: 105 | J8: 9 | K8: 29.37 | L8: 17.34 | M8: 13.0
A9: 8 | B9: EI 300 (3.00 in tongue) | C9: 3 | D9: 1 | E9: 3.000 | F9: 720 | G9: 9.00 | H9: =130 / (4.44 * 60 *(G9 * 0.0006452) * 1) -> 84 | I9: =130 / (4.44 * 60 *(G9 * 0.0006452) * 1.176) -> 71 | J9: 13 | K9: 29.4 | L9: 43.78 | M9: 33.0
A10: 9 | B10: EI 300 (3.00 in tongue) | C10: 3 | D10: 1.5 | E10: 4.500 | F10: 2700 | G10: 13.50 | H10: =130 / (4.44 * 60 *(G10 * 0.0006452) * 1) -> 56 | I10: =130 / (4.44 * 60 *(G10 * 0.0006452) * 1.176) -> 48 | J10: 13 | K10: 28.35 | L10: 65.68 | M10: 50.0
A11: 10 | B11: EI 300 (3.00 in tongue) | C11: 3 | D11: 2 | E11: 6.000 | F11: 4000 | G11: 18.00 | H11: =130 / (4.44 * 60 *(G11 * 0.0006452) * 1) -> 42 | I11: =130 / (4.44 * 60 *(G11 * 0.0006452) * 1.176) -> 36 | J11: 12 | K11: 27.96 | L11: 87.56 | M11: 65.0
A12: 11 | B12: Out Of Range | C12: ERROR! | D12: 2 | E12: 8.000 | F12: 5000 | G12: 32.00 | H12: 0 | I12: 0 | K12: 26.19
F16: VA Range examples: 0 is 0 to < 19 VA, 19 is 19 to < 39 VA
